bitfinex-derivatives/quotes_SOLF0:USTF0_20250714
["timestamp","ask_amount","ask_price","bid_price","bid_amount"]
[1752478821269,3.64,166.82,166.8,3.54]
[1752478821462,5.9933,166.81,166.8,3.54]
[1752478821671,5.9933,166.81,166.74,5.27150714]
[1752478821672,3.64,166.81,166.72,3.54]
[1752478821870,3.64,166.81,166.76,3.54]
[1752478822068,5.27150714,166.82,166.76,3.54]
[1752478822069,3.64,166.8,166.76,3.54]
[1752478822268,3.64,166.79,166.76,9.535]
[1752478822469,3.64,166.79,166.72,5.27150714]
[1752478822470,3.64,166.79,166.77,3.54]
[1752478822870,3.64,166.78,166.77,3.54]
[1752478823070,9.6344,166.78,166.77,3.54]
[1752478823664,9.6344,166.78,166.68,4.94317444]
[1752478823665,5.9951,166.77,166.68,4.94317444]
[1752478823976,3.64,166.76,166.74,3.54]
[1752478824276,3.64,166.76,166.7,3.54]
[1752478824478,3.64,166.76,166.74,3.54]
[1752478824674,3.64,166.76,166.73,5.9959]
[1752478824868,3.64,166.76,166.75,3.54]
[1752478825468,5.9949,166.77,166.75,3.54]
[1752478825675,5.9951,166.76,166.75,3.54]
[1752478825970,9.6351,166.76,166.75,3.54]
[1752478826569,3.64,166.76,166.75,3.54]
[1752478828081,5.9951,166.76,166.75,3.54]
[1752478829280,5.27150714,166.82,166.76,3.54]
[1752478829582,3.64,166.8,166.76,3.54]
[1752478829883,3.64,166.82,166.78,3.54]
[1752478830079,521.62,166.84,166.78,3.54]
[1752478830383,3.64,166.84,166.81,3.54]
[1752478830580,5.01948775,166.85,166.78,3.54]
[1752478830884,5.9921,166.85,166.81,5.9931]
[1752478831083,9.6321,166.85,166.82,3.54]
[1752478831279,5.01948775,166.85,166.84,3.54]
[1752478831486,5.01948775,166.86,166.84,3.54]
[1752478831674,3.64,166.85,166.84,3.54]
[1752478831879,9.6319,166.85,166.82,3.54]
[1752478832080,9.6319,166.85,166.83,3.54]
[1752478832275,3.64,166.85,166.83,3.54]
[1752478832491,5.9923,166.84,166.83,3.54]
[1752478832787,9.6323,166.84,166.83,3.54]
[1752478833387,3.64,166.84,166.83,3.54]
[1752478833581,3.64,166.84,166.78,3.54]
[1752478834082,3.64,166.84,166.77,5.27150714]
[1752478834281,3.64,166.84,166.76,5.27150714]
[1752478834481,1.04333748,166.89,166.77,3.54]
[1752478834786,3.64,166.9,166.81,3.54]
[1752478835183,3.64,166.86,166.84,3.54]
[1752478835890,3.64,166.88,166.82,9.5327]
[1752478836184,9.5218,166.86,166.82,3.54]
[1752478836377,3.53,166.88,166.84,3.63]
[1752478836782,3.53,166.88,166.84,5.9922]
[1752478836975,3.53,166.88,166.85,3.63]
[1752478837380,3.53,166.9,166.86,3.63]
[1752478837579,519.06325929,166.91,166.86,3.63]
[1752478837887,3.53,166.89,166.87,3.63]
[1752478838086,519.06325929,166.91,166.87,3.63]
[1752478838087,3.53,166.88,166.87,3.63]
[1752478838290,3.53,166.88,166.82,5.27150714]
[1752478838584,9.5211,166.88,166.86,3.63]
[1752478839886,3.53,166.88,166.85,5.9919]
[1752478840079,5.9905,166.89,166.87,3.63]
[1752478840279,9.5205,166.89,166.87,3.63]
[1752478840587,519.06325929,166.91,166.84,5.27150714]
[1752478840784,191.42,166.95,166.89,3.63]
[1752478840785,3.53,166.9,166.89,3.63]
[1752478841088,3.53,166.93,166.89,3.63]
[1752478841589,5.9901,166.9,166.89,3.63]
[1752478841780,9.5201,166.9,166.89,3.63]
[1752478841978,3.53,166.89,166.88,3.63]
[1752478842192,3.53,166.88,166.86,3.63]
[1752478842384,3.53,166.87,166.82,3.63]
[1752478842686,3.53,166.87,166.78,3.63]
[1752478842884,3.53,166.87,166.81,3.63]
[1752478843080,3.53,166.87,166.81,6.79102837]
[1752478843289,1.04296225,166.94,166.81,3.16102837]
[1752478843478,3.16102837,166.9,166.82,3.63]
[1752478843684,3.53,166.89,166.82,3.63]
[1752478844183,9.5209,166.88,166.84,5.992]
[1752478844389,9.5209,166.88,166.86,3.63]
[1752478845090,5.9912,166.87,166.86,3.63]
[1752478845287,3.53,166.87,166.84,3.63]
[1752478845487,3.53,166.87,166.85,3.63]
[1752478845695,3.16102837,166.91,166.85,3.63]
[1752478845994,3.53,166.89,166.85,3.63]
[1752478846191,5.9904,166.9,166.87,3.63]
[1752478846385,190.2,166.93,166.86,3.16102837]
[1752478846585,3.53,166.9,166.88,3.63]
[1752478846789,9.5202,166.9,166.88,3.63]
[1752478846986,5.9902,166.9,166.89,3.63]
[1752478847188,3.16102837,166.92,166.9,3.63]
[1752478847389,3.53,166.91,166.9,3.63]
[1752478847592,9.5197,166.91,166.9,3.63]
[1752478847789,193.73,166.93,166.91,3.63]
[1752478847990,193.73,166.93,166.92,3.63]
[1752478848591,193.73,166.93,166.88,5.9908]
[1752478848791,193.73,166.93,166.91,3.63]
[1752478849089,9.5194,166.92,166.91,3.63]
[1752478849290,3.53,166.92,166.87,9.15212837]
[1752478849590,3.53,166.92,166.88,3.63]
[1752478849791,3.53,166.91,166.86,3.63]
[1752478850196,193.36102837,166.93,166.8,8.10420281]
[1752478850396,6.69102837,166.91,166.84,3.63]
[1752478850991,3.53,166.91,166.87,3.63]
[1752478851192,3.53,166.91,166.87,6.79102837]
[1752478851394,3.53,166.93,166.87,3.63]
[1752478851696,3.53,166.93,166.89,3.63]
[1752478852094,3.16102837,166.92,166.89,3.63]
[1752478852297,3.53,166.91,166.85,3.16102837]
[1752478852490,3.53,166.92,166.9,3.63]
[1752478852694,3.53,166.91,166.9,3.63]
[1752478853400,3.53,166.9,166.89,3.63]
[1752478853600,3.53,166.92,166.89,3.63]
[1752478853806,5.9903,166.9,166.87,5.9911]
[1752478854102,3.53,166.91,166.85,3.16102837]
[1752478854291,3.53,166.91,166.86,3.63]
[1752478854494,3.53,166.91,166.86,6.79102837]
[1752478854697,3.53,166.91,166.87,3.63]
[1752478854892,3.53,166.94,166.87,3.63]
[1752478855095,6.69102837,166.94,166.87,3.63]
[1752478855596,3.53,166.93,166.89,3.63]
[1752478856195,5.9896,166.92,166.89,9.6202]
[1752478856497,3.53,166.93,166.91,3.63]
[1752478856695,3.53,166.93,166.92,3.63]
[1752478857301,3.53,166.95,166.92,3.63]
[1752478857504,3.53,166.95,166.93,3.63]
[1752478857904,9.5189,166.94,166.93,3.63]
[1752478858202,3.16102837,166.95,166.89,3.63]
[1752478858405,3.16102837,166.95,166.81,4.94317444]
[1752478858406,3.16102837,166.93,166.81,4.94317444]
[1752478858708,3.53,166.92,166.85,3.63]
[1752478858906,3.53,166.92,166.86,5.9913]
[1752478859108,3.53,166.91,166.87,3.63]
[1752478859410,5.9903,166.9,166.85,3.63]
[1752478860809,5.9906,166.89,166.85,3.63]
[1752478861205,5.9902,166.9,166.87,5.9911]
[1752478861412,5.9902,166.9,166.89,3.63]
[1752478862514,3.53,166.89,166.85,5.9918]
[1752478862815,3.53,166.91,166.88,3.63]
[1752478863114,3.53,166.91,166.8,3.16102837]
[1752478863115,3.53,166.94,166.9,3.63]
[1752478863505,3.53,166.93,166.9,3.63]
[1752478863907,188.9,166.96,166.91,3.63]
[1752478864106,3.53,166.94,166.91,3.63]
[1752478864812,3.53,166.93,166.92,3.63]
[1752478865312,9.519,166.93,166.92,3.63]
[1752478867814,5.9898,166.91,166.9,3.42]
[1752478868012,9.5198,166.91,166.9,3.42]
[1752478868313,5.9898,166.91,166.9,3.42]
[1752478868916,9.5198,166.91,166.9,3.42]
[1752478870817,6.69102837,166.91,166.9,3.42]
[1752478871118,3.53,166.9,166.84,3.42]
[1752478871420,3.53,166.9,166.85,3.42]
[1752478872012,5.9911,166.88,166.86,3.42]
[1752478873220,5.9912,166.87,166.86,3.42]
[1752478873523,3.16102837,166.87,166.84,3.42]
[1752478873724,3.53,166.85,166.84,3.42]
[1752478874020,5.9919,166.85,166.84,3.42]
[1752478874617,5.9916,166.86,166.84,3.42]
[1752478875219,3.53,166.88,166.84,3.42]
[1752478875415,3.53,166.87,166.81,3.42]
[1752478875610,5.9922,166.85,166.81,9.4131]
[1752478875813,5.9922,166.85,166.82,3.42]
[1752478877018,5.9922,166.85,166.83,3.42]
[1752478877625,6.69102837,166.87,166.84,3.42]
[1752478878229,5.9916,166.86,166.84,3.42]
[1752478878625,3.53,166.86,166.83,3.42]
[1752478878826,5.9922,166.85,166.83,3.42]
[1752478879021,3.53,166.86,166.83,3.42]
[1752478880128,9.5216,166.86,166.83,3.42]
[1752478880420,3.53,166.88,166.85,3.42]
[1752478880629,9.5201,166.9,166.85,3.42]
[1752478880818,3.53,166.92,166.88,3.42]
[1752478881826,517.66,166.93,166.9,3.42]
[1752478882027,521.19,166.93,166.9,3.42]
[1752478882230,5.9891,166.93,166.9,3.42]
[1752478882731,9.5191,166.93,166.9,3.42]
[1752478883128,9.5191,166.93,166.9,9.41]
[1752478883430,5.9897,166.92,166.86,3.16102837]
[1752478883633,5.9897,166.92,166.89,5.9904]
[1752478883828,5.9897,166.92,166.9,3.42]
[1752478884526,9.5197,166.92,166.9,3.42]
[1752478884730,9.5197,166.92,166.91,3.42]
[1752478885033,3.53,166.93,166.9,3.42]
[1752478886134,5.9894,166.92,166.9,3.42]
[1752478886930,9.5191,166.93,166.9,3.42]
[1752478887234,3.53,166.93,166.92,3.42]
[1752478887626,3.53,166.93,166.88,3.42]
[1752478887826,190.42102837,166.94,166.88,3.42]
[1752478888031,3.53,166.93,166.88,3.42]
[1752478888233,3.53,166.93,166.87,3.42]
[1752478888933,190.42102837,166.94,166.86,3.16102837]
[1752478888934,3.53,166.91,166.89,3.42]
[1752478889129,3.53,166.9,166.89,3.42]
[1752478889831,3.53,166.89,166.83,9.4126]
[1752478890040,3.16102837,166.87,166.83,5.9926]
[1752478890230,3.53,166.86,166.85,3.42]
[1752478892730,6.69102837,166.86,166.81,3.42]
[1752478892933,3.16102837,166.88,166.76,6.574982]
[1752478892934,3.53,166.84,166.79,3.42]
[1752478893435,3.53,166.84,166.81,3.42]
[1752478893836,3.53,166.84,166.82,5.9927]
[1752478894039,3.53,166.84,166.83,3.42]
[1752478895828,3.16102837,166.85,166.76,4.95964566]
[1752478896033,186.7,166.89,166.76,4.95964566]
[1752478896034,3.16102837,166.83,166.77,3.42]
[1752478896336,3.53,166.81,166.77,3.42]
[1752478896538,6.69102837,166.83,166.77,3.42]
[1752478897340,3.53,166.87,166.78,3.16102837]
[1752478897529,191.04102837,166.87,166.79,3.44]
[1752478897735,3.53,166.86,166.79,3.44]
[1752478898140,6.69102837,166.91,166.84,3.16102837]
[1752478898438,6.69102837,166.91,166.85,3.44]
[1752478898631,5.9902,166.9,166.85,3.44]
[1752478898831,3.53,166.89,166.85,3.44]
[1752478899243,3.53,166.89,166.87,3.44]
[1752478899441,3.53,166.89,166.88,3.44]
[1752478900439,3.53,166.88,166.87,3.44]
[1752478901141,9.521,166.88,166.86,3.44]
[1752478901340,3.53,166.88,166.87,3.44]
[1752478901645,191.11,166.92,166.88,3.44]
[1752478902139,197.0996,166.92,166.88,9.4305]
[1752478902440,197.0996,166.92,166.9,3.44]
[1752478902633,191.11,166.92,166.91,3.44]
[1752478902838,187.58,166.92,166.91,3.44]
[1752478903247,187.58,166.92,166.91,9.4297]
[1752478903431,187.58,166.92,166.91,3.44]
[1752478903636,3.53,166.94,166.91,9.4297]
[1752478903837,3.53,166.94,166.92,3.44]
[1752478904044,705.24,166.97,166.92,3.44]
[1752478904338,708.77,166.97,166.95,3.44]
[1752478904546,187.48,166.97,166.96,3.44]
[1752478905142,196.9976,166.97,166.96,3.44]
[1752478905839,196.9976,166.97,166.91,3.16102837]
[1752478905840,190.64102837,166.97,166.91,3.16102837]
[1752478906241,3.53,166.95,166.94,3.44]
[1752478907741,9.5183,166.95,166.94,3.44]
[1752478908245,5.9881,166.96,166.92,5.989]
[1752478908439,5.9881,166.96,166.93,3.44]
[1752478908642,3.16102837,166.96,166.94,3.44]
[1752478908842,3.16102837,166.96,166.92,3.44]
[1752478909038,3.53,166.94,166.93,3.44]
[1752478909342,3.53,166.94,166.92,3.44]
[1752478909740,3.53,166.94,166.88,3.16102837]
[1752478910041,3.53,166.94,166.84,4.95964566]
[1752478910240,3.16102837,166.95,166.87,3.44]
[1752478910438,3.16102837,166.95,166.91,3.44]
[1752478910439,9.5187,166.94,166.91,3.44]
[1752478910646,3.53,166.94,166.89,3.44]
[1752478911149,3.53,166.96,166.92,3.16102837]
[1752478911350,3.53,166.97,166.93,3.44]
[1752478911646,5.988,166.96,166.93,3.44]
[1752478911847,3.53,166.96,166.9,3.16102837]
[1752478912044,3.53,166.95,166.94,3.44]
[1752478912750,3.53,166.96,166.95,3.44]
[1752478913050,3.53,166.97,166.96,3.44]
[1752478913350,3.53,166.95,166.94,3.44]
[1752478914150,5.9884,166.95,166.89,3.44]
[1752478914343,6.69102837,166.96,166.9,3.16102837]
[1752478914546,9.5183,166.95,166.91,3.44]
[1752478914742,3.53,166.95,166.91,3.44]
[1752478914938,9.5189,166.94,166.9,5.9899]
[1752478915149,3.53,166.93,166.89,3.44]
[1752478915347,6.69102837,166.96,166.89,3.44]
[1752478915750,6.69102837,166.96,166.92,3.44]
[1752478916047,3.53,166.95,166.93,3.44]
[1752478916348,9.5185,166.95,166.93,3.44]
[1752478916747,5.9885,166.95,166.93,3.44]
[1752478916947,9.5185,166.95,166.93,3.44]
[1752478917146,3.53,166.95,166.93,3.44]
[1752478917352,3.53,166.95,166.94,3.44]
[1752478918046,9.5183,166.95,166.94,3.44]
[1752478919153,9.5183,166.95,166.91,5.9896]
[1752478919445,9.5187,166.94,166.93,3.44]
[1752478920059,3.53,166.92,166.91,3.44]
[1752478921551,3.53,166.94,166.91,3.44]
[1752478921751,3.53,166.96,166.91,3.44]
[1752478921948,5.9881,166.96,166.94,3.44]
[1752478922153,3.53,166.96,166.92,3.44]
[1752478922552,3.53,166.96,166.93,5.9888]
[1752478922753,3.53,166.96,166.95,3.44]
[1752478922952,190.15,166.97,166.95,3.44]
[1752478923748,190.15,166.97,166.96,3.44]
[1752478926749,186.62,166.97,166.96,3.44]
[1752478928252,517.56,167.0,166.96,3.44]
[1752478928461,3.41,166.99,166.96,3.44]
[1752478928754,3.41,166.99,166.97,3.33]
[1752478928949,3.41,166.98,166.95,3.33]
[1752478929655,5.9882,166.96,166.95,3.33]
[1752478930451,9.3982,166.96,166.95,3.33]
[1752478930851,5.9882,166.96,166.95,3.33]
[1752478932153,9.3977,166.97,166.95,3.33]
[1752478932455,9.3977,166.97,166.96,3.33]
[1752478933055,5.9877,166.97,166.96,3.33]
[1752478933355,5.9873,166.98,166.96,3.33]
[1752478933762,706.87,167.0,166.96,3.33]
[1752478933956,3.41,166.99,166.96,3.33]
[1752478934354,3.16102837,167.02,166.96,3.33]
[1752478934560,185.36,167.04,166.98,3.33]
[1752478934862,5.9868,167.0,166.98,3.33]
[1752478935163,3.16102837,167.03,166.98,3.33]
[1752478935359,3.41,167.01,166.98,3.33]
[1752478935657,3.41,167.01,166.95,3.16102837]
[1752478935862,3.41,167.01,166.97,3.33]
[1752478936259,9.3964,167.01,166.97,3.33]
[1752478938163,9.3964,167.01,166.97,9.3175]
[1752478938366,9.3964,167.01,166.98,3.33]
[1752478939261,6.57102837,167.0,166.95,3.33]
[1752478939463,3.41,166.99,166.95,3.33]
[1752478939662,3.41,166.99,166.92,3.33]
[1752478940661,5.9873,166.98,166.92,3.33]
[1752478940859,3.41,167.02,166.92,3.33]
[1752478941165,185.38,167.03,166.96,3.33]
[1752478941363,3.41,167.02,166.96,3.33]
[1752478941866,3.41,167.02,166.98,3.33]
[1752478942162,9.396,167.02,166.99,3.33]
[1752478942562,9.3958,167.02,166.99,3.33]
[1752478942761,3.41,167.03,167.0,3.33]
[1752478943066,3.41,167.02,167.01,3.33]
[1752478943366,9.3959,167.02,167.01,3.33]
[1752478944164,5.9859,167.02,167.01,3.33]
[1752478944366,9.3959,167.02,167.01,3.33]
[1752478944859,3.41,167.0,166.98,3.33]
[1752478945060,3.41,167.0,166.99,3.33]
[1752478945465,5.9862,167.01,167.0,3.33]
[1752478945661,3.41,167.02,167.01,3.33]
[1752478945969,3.41,167.0,166.99,3.33]
[1752478946165,3.16102837,167.01,166.98,3.33]
[1752478946366,3.41,167.0,166.99,3.33]
[1752478947465,3.41,166.99,166.97,3.33]
[1752478947663,5.9868,167.0,166.97,3.33]
[1752478947964,9.3968,167.0,166.97,3.33]
[1752478948165,9.3968,167.0,166.97,9.3175]
[1752478948364,9.3968,167.0,166.97,5.9875]
[1752478948559,3.41,167.0,166.99,3.33]
[1752478948765,184.16,167.04,166.99,9.3169]
[1752478948966,3.41,167.03,167.01,3.33]
[1752478949162,9.3958,167.02,167.01,3.33]
[1752478949565,3.41,167.02,166.94,3.33]
[1752478949757,3.41,167.01,166.94,3.33]
[1752478949958,184.16,167.04,166.99,3.33]
[1752478949959,3.41,167.02,166.99,3.33]
[1752478950362,9.3962,167.01,166.96,3.33]
[1752478950766,9.3962,167.01,166.95,3.16102837]
[1752478951068,3.16102837,167.03,166.95,3.16102837]
[1752478951264,3.41,166.99,166.98,3.33]
[1752478951768,9.3971,166.99,166.98,3.33]
[1752478952170,3.41,166.99,166.98,3.33]
[1752478952362,9.3966,167.0,166.99,3.33]
[1752478952564,3.41,167.0,166.99,3.33]
[1752478953463,9.3959,167.02,166.99,3.33]
[1752478953664,3.41,167.03,166.96,3.33]
[1752478953866,3.41,167.03,166.98,3.33]
[1752478954066,3.41,167.0,166.97,5.9875]
[1752478954368,3.41,167.0,166.99,3.33]
[1752478954561,9.3965,167.0,166.99,3.33]
[1752478954969,3.41,166.99,166.96,3.33]
[1752478955771,3.41,166.99,166.97,3.33]
[1752478955966,3.41,166.99,166.98,3.33]
[1752478956573,3.41,166.99,166.93,3.6]
[1752478956969,9.3971,166.99,166.95,5.9881]
[1752478957265,3.55,166.98,166.97,3.6]
[1752478958167,3.55,166.99,166.98,3.6]
[1752478958668,3.55,167.01,166.98,3.6]
[1752478958868,187.37,167.02,166.98,3.6]
[1752478959979,189.8059,167.02,166.98,5.9871]
[1752478960272,193.3559,167.02,166.99,3.6]
[1752478960568,187.37,167.02,166.99,3.6]
[1752478961068,9.5365,167.01,166.97,5.9873]
[1752478961271,9.5365,167.01,166.98,3.6]
[1752478961272,3.55,167.0,166.98,3.6]
[1752478961476,3.55,167.0,166.99,3.6]
[1752478961670,193.3559,167.02,166.95,3.6]
[1752478961870,187.37,167.02,166.97,3.6]
[1752478962271,187.37,167.02,167.01,3.6]
[1752478962568,183.82,167.02,167.01,3.6]
[1752478963064,9.5353,167.04,167.01,3.6]
[1752478963065,3.55,167.04,167.01,3.6]
[1752478963270,9.14582837,167.05,167.01,3.6]
[1752478963271,3.55,167.05,167.01,3.6]
[1752478963664,9.5351,167.04,167.01,3.6]
[1752478963870,3.55,167.03,166.95,4.95964566]
[1752478964064,6.71102837,167.03,166.96,3.6]
[1752478964269,5.9859,167.02,166.96,3.6]
[1752478964879,9.5359,167.02,166.99,3.6]
[1752478965174,3.55,167.01,166.99,3.6]
[1752478965369,9.14662837,167.03,167.0,3.6]
[1752478965576,9.5356,167.03,167.0,3.6]
[1752478966271,6.71102837,167.05,167.01,3.6]
[1752478966473,3.55,167.05,167.01,3.6]
[1752478966671,3.55,167.07,167.01,3.6]
[1752478966874,3.55,167.07,166.99,3.16102837]
[1752478966875,3.55,167.07,167.0,3.6]
[1752478967272,5.9846,167.06,167.02,5.9857]
[1752478967475,3.55,167.05,167.03,3.6]
[1752478967674,3.55,167.05,167.04,3.6]
[1752478967980,9.5347,167.05,167.04,3.6]
[1752478968273,3.55,167.04,167.0,3.6]
[1752478968667,9.5353,167.04,167.0,5.9862]
[1752478968869,3.55,167.04,167.01,3.6]
[1752478969073,3.55,167.05,167.01,3.6]
[1752478969273,3.55,167.04,167.02,3.6]
[1752478969469,3.55,167.04,167.03,3.6]
[1752478969981,5.985,167.05,167.03,3.6]
[1752478970279,3.55,167.05,167.04,3.6]
[1752478970481,521.05,167.08,167.03,5.9854]
[1752478970778,3.55,167.07,167.04,3.6]
[1752478970976,9.5343,167.07,167.04,3.6]
[1752478971176,9.5343,167.07,167.05,3.6]
[1752478971576,5.9844,167.06,167.05,3.6]
[1752478971772,9.5344,167.06,167.05,3.6]
[1752478973180,3.55,167.06,167.05,3.6]
[1752478973379,9.5341,167.07,167.06,3.6]
[1752478973575,5.9841,167.07,167.06,3.6]
[1752478973775,526.64482837,167.08,167.06,3.6]
[1752478973974,530.19482837,167.08,167.07,3.6]
[1752478974176,524.21102837,167.08,167.04,5.9848]
[1752478974372,3.55,167.07,167.06,3.6]
[1752478975176,9.5341,167.07,167.06,3.6]
[1752478976482,5.9846,167.06,167.0,3.16102837]
[1752478976678,3.55,167.05,167.04,3.6]
[1752478977070,5.9846,167.06,167.04,3.6]
[1752478977272,3.55,167.06,167.03,3.6]
[1752478977475,187.29,167.06,167.03,3.6]
[1752478978286,187.29,167.06,167.03,9.5852]
[1752478978580,183.74,167.06,167.04,3.6]
[1752478978772,187.29,167.06,167.05,3.6]
[1752478979278,183.74,167.06,167.05,3.6]
[1752478979580,183.74,167.06,167.03,5.9852]
[1752478979880,183.74,167.06,167.04,5.9851]
[1752478980084,183.74,167.06,167.05,3.6]
[1752478982084,189.7244,167.06,167.05,3.6]
[1752478982488,193.2744,167.06,167.05,3.6]
[1752478982885,3.55,167.04,167.01,3.6]
[1752478983086,3.55,167.03,167.02,3.6]
[1752478983386,187.25,167.03,167.02,3.6]
[1752478983580,193.2354,167.03,167.02,3.6]
[1752478983788,183.7,167.03,167.02,3.6]
[1752478984183,189.6854,167.03,167.02,3.6]
[1752478984984,183.7,167.03,167.02,3.6]
[1752478985189,3.55,167.02,167.01,3.6]
[1752478987090,183.7,167.03,167.01,3.6]
[1752478987293,187.04,167.03,167.02,3.58]
[1752478987988,183.7,167.03,167.02,3.58]
[1752478988486,520.66102837,167.08,166.99,3.16102837]
[1752478988690,3.34,167.06,167.03,3.58]
[1752478988896,5.985,167.05,167.03,3.58]
[1752478989188,3.34,167.06,167.03,3.58]
[1752478990087,3.34,167.06,167.02,5.9858]
[1752478990088,5.9845,167.06,167.02,5.9858]
[1752478990288,3.34,167.05,167.04,3.58]
[1752478990498,5.9845,167.06,167.0,3.16102837]
[1752478990687,9.3245,167.06,167.05,3.58]
[1752478991390,3.34,167.06,167.05,3.58]
[1752478992894,9.3244,167.06,167.05,3.58]
[1752478999593,5.9844,167.06,167.05,3.58]
[1752478999795,9.3244,167.06,167.05,3.58]
[1752478999997,3.34,167.06,167.05,3.58]
[1752479000699,183.68,167.07,167.05,3.58]
[1752479000899,3.34,167.06,167.05,3.58]
[1752479001999,9.3244,167.06,167.05,3.58]
[1752479002702,9.3244,167.06,167.04,3.58]
[1752479002703,3.34,167.05,167.04,3.58]
[1752479003000,186.92,167.05,167.04,3.58]
[1752479003907,192.9047,167.05,167.04,3.58]
[1752479004406,9.3257,167.03,167.0,3.58]
[1752479005198,3.34,167.03,167.0,5.9865]
[1752479005400,5.9853,167.04,167.01,3.58]
[1752479005607,9.3253,167.04,167.01,3.58]
[1752479006003,3.34,167.04,167.02,3.58]
[1752479006604,9.3251,167.04,167.02,3.58]
[1752479007305,5.9851,167.04,167.01,3.58]
[1752479007507,9.3255,167.03,167.01,3.58]
[1752479008210,3.34,167.03,167.01,3.58]
[1752479010608,3.34,167.02,166.99,4.94821179]
[1752479010810,3.34,167.01,167.0,3.58]
[1752479011216,183.48,167.02,166.96,3.58]
[1752479011414,3.34,166.99,166.96,3.58]
[1752479011607,3.34,167.0,166.96,3.58]
[1752479011913,3.34,167.0,166.98,3.58]
[1752479012115,5.9869,166.99,166.98,3.58]
[1752479012308,3.34,166.99,166.96,3.58]
[1752479012615,3.34,166.99,166.97,3.58]
[1752479013003,5.9875,166.98,166.97,3.58]
[1752479013204,3.34,166.97,166.95,3.58]
[1752479013420,3.34,166.96,166.95,3.58]
[1752479014710,3.34,167.01,166.95,3.58]
[1752479014908,1.0424936,167.02,166.95,3.58]
[1752479014909,186.8,167.0,166.95,3.58]
[1752479015109,3.34,167.02,166.96,3.58]
[1752479015309,709.03098664,167.04,166.98,3.58]
[1752479015510,704.0,167.04,167.0,5.9863]
[1752479015710,186.78,167.04,167.01,3.58]
[1752479016414,186.78,167.04,166.99,3.16102837]
[1752479016415,186.84,167.04,166.99,3.65]
[1752479016613,192.8253,167.04,166.99,3.65]
[1752479016914,186.84,167.04,167.01,3.65]
[1752479017112,183.44,167.04,167.01,3.65]
[1752479017313,183.44,167.04,167.01,9.6359]
[1752479017517,183.44,167.04,167.02,3.65]
[1752479018017,3.4,167.06,167.02,3.65]